bitfinex/quotes_SOLUSD_20240916
["timestamp","ask_amount","ask_price","bid_price","bid_amount"]
[1726514188128,23.776884,130.67,130.64,1.53062657]
[1726514188274,23.776884,130.67,130.65,7.6538]
[1726514188693,23.776884,130.67,130.64,7.6545]
[1726514190095,25.29669375,130.67,130.64,7.6545]
[1726514190593,23.776884,130.65,130.61,22.0076]
[1726514190799,23.776884,130.65,130.6,19.1413]
[1726514191093,31.431284,130.65,130.61,7.6561]
[1726514191296,23.776884,130.63,130.6,19.1413]
[1726514191593,31.432184,130.63,130.59,7.6575]
[1726514193011,1.51980975,130.64,130.59,7.6575]
[1726514193012,31.431684,130.64,130.59,7.6575]
[1726514193691,32.95149375,130.64,130.6,7.6569]
[1726514195010,31.431684,130.64,130.6,7.6569]
[1726514196402,32.95149375,130.64,130.6,7.6569]
[1726514197306,7.6558,130.62,130.59,19.1436]
[1726514197508,23.776884,130.62,130.59,26.8007]
[1726514200391,23.776884,130.62,130.6,7.6569]
[1726514201587,23.776884,130.63,130.6,7.6569]
[1726514202210,16.5269,130.68,130.61,19.1407]
[1726514202416,16.5269,130.68,130.61,20.67163286]
[1726514202717,16.5269,130.68,130.61,34.93442668]
[1726514202902,9.17300975,130.67,130.63,7.6552]
[1726514203213,9.17300975,130.67,130.62,7.6555]
[1726514203419,7.6532,130.67,130.62,7.6555]
[1726514203714,23.776884,130.66,130.62,7.6555]
[1726514204710,1.51980975,130.65,130.62,7.6555]
[1726514204915,32.95009375,130.66,130.62,7.6555]
[1726514205122,31.430284,130.66,130.62,7.6555]
[1726514209495,31.429884,130.67,130.63,7.6551]
[1726514209695,23.776884,130.66,130.63,7.6551]
[1726514211216,1.51980975,130.67,130.64,7.6542]
[1726514211523,10.30542595,130.68,130.65,7.6538]
[1726514212128,10.30542595,130.68,130.66,7.6534]
[1726514212300,10.30542595,130.68,130.65,26.7885]
[1726514213013,23.776884,130.67,130.65,26.7885]
[1726514213208,23.776884,130.67,130.66,7.6534]
[1726514215630,23.776884,130.67,130.65,26.7885]
[1726514216327,10.30542595,130.68,130.65,34.92842668]
[1726514216530,0.9,130.7,130.67,7.6528]
[1726514217929,32.94879375,130.69,130.65,19.1347]
[1726514218153,32.94879375,130.69,130.62,19.1385]
[1726514218154,7.6524,130.68,130.62,19.1385]
[1726514218332,23.776884,130.67,130.62,19.1385]
[1726514218509,25.29669375,130.67,130.63,7.6546]
[1726514218835,23.776884,130.67,130.63,7.6546]
[1726514220113,23.776884,130.67,130.64,7.6544]
[1726514220318,23.776884,130.68,130.64,7.6544]
[1726514220520,0.9,130.7,130.64,19.1359]
[1726514220716,20.9,130.7,130.64,19.1359]
[1726514221831,23.776884,130.69,130.64,19.1359]
[1726514222524,1.51980975,130.68,130.66,7.6533]
[1726514222730,34.08230995,130.69,130.66,7.6533]
[1726514223103,35.6021197,130.69,130.66,7.6533]
[1726514225105,0.218229,130.71,130.66,19.1331]
[1726514225507,0.218229,130.71,130.68,7.6522]
[1726514225915,7.868829,130.71,130.67,7.6527]
[1726514226214,11.5662206,130.7,130.66,26.7863]
[1726514226527,23.776884,130.69,130.66,26.7863]
[1726514226727,25.29669375,130.69,130.66,19.1331]
[1726514227806,32.94829375,130.69,130.66,19.1331]
[1726514228833,7.6539,130.66,130.62,7.6553]
[1726514229024,31.429784,130.67,130.63,7.6551]
[1726514229206,23.776884,130.67,130.61,22.887]
[1726514229411,25.29669375,130.68,130.65,7.6539]
[1726514230531,23.776884,130.66,130.61,42.0267]
[1726514230744,1.51980975,130.65,130.62,7.6556]
[1726514235333,1.51980975,130.65,130.61,42.0267]
[1726514235334,25.29669375,130.66,130.61,22.887]
[1726514235534,23.776884,130.68,130.64,7.6541]
[1726514236340,25.29669375,130.68,130.64,7.6541]
[1726514236512,23.776884,130.66,130.64,7.6541]
[1726514236945,7.6523,130.68,130.64,7.6541]
[1726514236946,23.776884,130.67,130.64,7.6541]
[1726514238041,10.04722391,130.69,130.66,7.653]
[1726514238223,0.218229,130.71,130.67,19.1317]
[1726514238433,0.218229,130.71,130.7,7.6511]
[1726514242246,0.218229,130.71,130.66,7.6533]
[1726514242247,23.776884,130.69,130.66,7.6533]
[1726514242421,25.29669375,130.69,130.66,7.6533]
[1726514243138,23.776884,130.7,130.67,7.6528]
[1726514243327,23.776884,130.7,130.68,7.6522]
[1726514243848,23.776884,130.7,130.66,26.7858]
[1726514244421,23.776884,130.7,130.67,7.6528]
[1726514246645,23.776884,130.7,130.68,7.6522]
[1726514249118,0.218229,130.71,130.68,19.1303]
[1726514249324,0.218229,130.71,130.7,7.6511]
[1726514251046,1.73803875,130.71,130.68,26.782]
[1726514251327,23.776884,130.7,130.67,7.6523]
[1726514251532,7.868829,130.71,130.67,7.6523]
[1726514251533,23.995113,130.71,130.68,7.6522]
[1726514253027,25.51492275,130.71,130.68,7.6522]
[1726514254135,1.51980975,130.7,130.67,26.7847]
[1726514254340,31.645713,130.71,130.67,26.7847]
[1726514254554,7.6512,130.7,130.67,19.1319]
[1726514254851,23.776884,130.69,130.66,7.6532]
[1726514255346,23.776884,130.67,130.66,7.6532]
[1726514255755,23.776884,130.67,130.65,7.6538]
[1726514256454,23.776884,130.68,130.65,7.6538]
[1726514256620,25.29669375,130.68,130.65,7.6538]
[1726514265855,23.776884,130.68,130.65,19.1336]
[1726514266037,7.869129,130.71,130.67,7.6528]
[1726514266358,23.776884,130.7,130.67,7.6528]
[1726514266663,25.29669375,130.7,130.67,7.6528]
[1726514266960,23.776884,130.7,130.67,7.6528]
[1726514267153,25.29669375,130.7,130.67,7.6528]
[1726514268663,32.94789375,130.7,130.66,7.6532]
[1726514269442,31.428084,130.7,130.66,7.6532]
[1726514271056,1.51980975,130.69,130.66,7.6532]
[1726514271263,23.776884,130.68,130.66,7.6532]
[1726514274462,23.776884,130.69,130.66,7.6532]
[1726514275840,31.428584,130.69,130.65,26.7874]
[1726514276043,1.51980975,130.68,130.65,26.7874]
[1726514276664,25.29669375,130.67,130.63,30.3022]
[1726514276875,1.51980975,130.66,130.63,30.3027]
[1726514277167,1.51980975,130.66,130.62,19.1381]
[1726514277168,23.776884,130.65,130.62,26.7936]
[1726514277337,1.51980975,130.64,130.62,26.7936]
[1726514277763,23.776884,130.63,130.6,23.3769]
[1726514278141,23.776884,130.63,130.6,7.6569]
[1726514278363,25.29669375,130.63,130.6,7.6569]
[1726514278957,23.776884,130.63,130.6,7.6569]
[1726514279264,23.776884,130.64,130.6,7.6569]
[1726514279451,25.29669375,130.64,130.6,7.6569]
[1726514279651,1.51980975,130.63,130.6,7.6569]
[1726514279853,23.776884,130.62,130.6,7.6569]
[1726514280041,7.6535,130.66,130.62,7.6557]
[1726514280251,23.776884,130.65,130.62,7.6557]
[1726514280463,23.776884,130.66,130.62,7.6557]
[1726514280645,7.6535,130.66,130.62,7.6557]
[1726514280963,23.776884,130.65,130.62,7.6557]
[1726514281368,23.776884,130.63,130.61,26.7968]
[1726514281663,23.776884,130.63,130.61,19.1406]
[1726514283475,23.776884,130.63,130.61,26.7969]
[1726514283667,23.776884,130.64,130.61,26.7969]
[1726514283862,23.776884,130.64,130.62,7.6557]
[1726514284073,23.776884,130.65,130.63,7.6548]
[1726514284270,23.776884,130.66,130.63,7.6548]
[1726514284668,32.95009375,130.66,130.62,7.6556]
[1726514284976,32.95009375,130.66,130.63,7.6551]
[1726514284977,25.29669375,130.66,130.63,7.6551]
[1726514285282,23.776884,130.67,130.64,7.6546]
[1726514285449,9.17350975,130.66,130.63,19.1377]
[1726514285765,23.776884,130.62,130.6,19.1414]
[1726514285977,23.776884,130.62,130.59,13.8346]
[1726514291061,23.776884,130.63,130.59,13.8346]
[1726514294177,7.6542,130.65,130.59,25.3207]
[1726514295265,7.6542,130.65,130.61,7.6562]
[1726514295982,23.776884,130.64,130.61,7.6562]
[1726514297066,25.29669375,130.64,130.61,7.6562]
[1726514297385,32.95139375,130.64,130.6,7.6568]
[1726514297688,32.95139375,130.64,130.59,32.9777]
[1726514297689,23.776884,130.62,130.59,32.9777]
[1726514297870,25.29669375,130.62,130.59,32.9777]
[1726514298586,25.29669375,130.62,130.59,26.8005]
[1726514299294,32.95249375,130.62,130.59,19.1435]
[1726514299586,31.432684,130.62,130.59,19.1435]
[1726514300362,23.776884,130.62,130.59,26.801]
[1726514300975,25.29669375,130.62,130.59,26.801]
[1726514303872,32.95249375,130.62,130.59,19.1435]
[1726514304087,23.776884,130.6,130.57,23.6736482]
[1726514304293,25.29669375,130.6,130.57,7.9540482]
[1726514306677,7.6576,130.59,130.57,0.2954482]
[1726514307001,69.1369,130.64,130.57,0.2954482]
[1726514307002,25.29669375,130.58,130.57,0.2954482]
[1726514307295,23.776884,130.58,130.57,0.2954482]
[1726514307500,25.29669375,130.58,130.57,0.2954482]
[1726514312878,23.776884,130.58,130.57,7.9541482]
[1726514314083,15.1378,130.64,130.59,7.6572]
[1726514314287,7.6558,130.62,130.58,26.8024]
[1726514314491,1.51980975,130.61,130.58,26.8024]
[1726514315398,23.776884,130.6,130.58,26.8024]
[1726514316989,23.776884,130.61,130.58,26.8024]
[1726514317896,23.776884,130.62,130.59,7.6574]
[1726514318474,23.776884,130.62,130.58,19.1445]
[1726514318686,23.776884,130.6,130.58,26.8024]
[1726514320002,23.776884,130.6,130.59,7.6575]
[1726514321485,1.33496462,130.66,130.63,7.6552]
[1726514321788,17.95742595,130.69,130.65,7.6539]
[1726514322005,7.652,130.69,130.65,7.6539]
[1726514322205,17.95772595,130.68,130.64,26.7906]
[1726514322603,10.30542595,130.68,130.65,7.6538]
[1726514322908,23.776884,130.67,130.65,7.6538]
[1726514323284,23.776884,130.66,130.65,7.6538]
[1726514323491,23.776884,130.66,130.64,26.7906]
[1726514323898,25.29669375,130.66,130.64,19.1362]
[1726514324215,23.776884,130.66,130.64,19.1362]
[1726514325897,23.776884,130.66,130.63,7.6551]
[1726514327814,31.430384,130.66,130.62,13.8872]
[1726514328017,31.430384,130.66,130.62,7.6557]
[1726514328018,23.776884,130.64,130.62,7.6557]
[1726514328397,23.776884,130.64,130.61,19.1401]
[1726514328398,23.776884,130.64,130.61,26.7963]
[1726514328593,25.29669375,130.64,130.61,26.7963]
[1726514329099,23.776884,130.64,130.61,26.7963]
[1726514329496,23.776884,130.65,130.61,26.7963]
[1726514331717,23.776884,130.65,130.62,7.6556]
[1726514332119,23.776884,130.66,130.63,7.6551]
[1726514333410,31.430384,130.66,130.62,7.6555]
[1726514340026,23.776884,130.66,130.61,19.1401]
[1726514340198,23.776884,130.64,130.61,19.1401]
[1726514340404,23.776884,130.62,130.61,19.1401]
[1726514340803,23.776884,130.62,130.61,26.7964]
[1726514342031,23.776884,130.62,130.61,19.1401]
[1726514342633,10.30542595,130.65,130.61,19.1401]
[1726514342931,23.776884,130.65,130.62,7.6554]
[1726514343136,23.776884,130.63,130.62,7.6554]
[1726514343741,23.776884,130.63,130.61,26.7963]
[1726514346940,25.29669375,130.62,130.61,19.1401]
[1726514347120,23.776884,130.62,130.61,19.1401]
[1726514347320,23.776884,130.63,130.6,22.8597]
[1726514348328,1.51980975,130.62,130.59,13.8888]
[1726514348527,23.776884,130.61,130.59,13.8888]
[1726514350836,23.776884,130.62,130.59,13.8888]
[1726514351027,23.776884,130.64,130.61,7.6559]
[1726514351627,23.776884,130.65,130.62,7.6555]
[1726514351835,11.64013932,130.68,130.63,7.6547]
[1726514351836,7.653,130.67,130.63,7.6547]
[1726514352029,17.95782595,130.68,130.64,7.6546]
[1726514352926,23.776884,130.67,130.64,7.6546]
[1726514353415,23.776884,130.67,130.62,42.4874]
[1726514353416,1.51980975,130.66,130.62,42.4874]
[1726514353623,23.776884,130.65,130.62,42.4874]
[1726514353942,34.08230995,130.65,130.62,42.4874]
[1726514354440,35.6021197,130.65,130.62,42.4874]
[1726514355141,23.776884,130.63,130.62,42.4874]
[1726514355440,23.776884,130.63,130.62,19.1393]
[1726514357946,23.776884,130.63,130.62,26.795]
[1726514358444,23.776884,130.65,130.62,26.795]
[1726514358651,10.30542595,130.68,130.62,19.1393]
[1726514359142,10.30542595,130.68,130.6,15.80421776]
[1726514359143,10.30542595,130.68,130.65,7.6536]
[1726514359842,10.30542595,130.68,130.64,26.7902]
[1726514360044,23.776884,130.67,130.65,7.6538]
[1726514360228,6.559629,130.71,130.67,7.6528]
[1726514360229,0.218229,130.71,130.67,7.6528]
[1726514360542,10.52365495,130.71,130.67,7.6528]
[1726514360773,10.30542595,130.7,130.67,7.6528]
[1726514360937,10.30542595,130.7,130.66,26.7864]
[1726514361250,11.8252357,130.7,130.66,26.7864]
[1726514361941,23.776884,130.69,130.66,26.7864]
[1726514362144,34.08230995,130.69,130.66,26.7864]
[1726514365237,23.776884,130.7,130.66,26.7864]
[1726514365648,25.29669375,130.7,130.66,26.7864]
[1726514365948,23.776884,130.7,130.66,26.7864]
[1726514367634,7.6511,130.7,130.66,26.7864]
[1726514367834,31.645813,130.71,130.67,7.6528]
[1726514368134,23.776884,130.69,130.67,7.6528]
[1726514371355,23.776884,130.69,130.68,7.6522]
[1726514371557,0.218229,130.71,130.69,7.6516]
[1726514371859,0.218229,130.71,130.7,7.6511]
[1726514372345,0.218229,130.71,130.7,9.18103374]
[1726514372659,0.218229,130.71,130.7,7.6511]
[1726514374151,0.218229,130.71,130.69,6.3866]
[1726514374931,0.218229,130.71,130.68,26.7826]
[1726514378953,0.218229,130.71,130.68,19.1305]
[1726514379150,0.218229,130.71,130.69,7.6515]
[1726514380664,0.218229,130.71,130.68,26.7826]
[1726514382148,23.776884,130.7,130.68,19.1305]
[1726514382353,23.776884,130.7,130.67,7.6528]
[1726514382659,31.427984,130.7,130.66,30.7049]
[1726514383045,23.776884,130.68,130.65,26.788]
[1726514385341,25.29669375,130.68,130.65,19.1342]
[1726514385645,32.94899375,130.68,130.65,19.1342]
[1726514385962,31.429184,130.68,130.65,19.1342]
[1726514386355,23.776884,130.66,130.63,23.8205]
[1726514388673,23.776884,130.66,130.63,7.655]
[1726514388845,31.430284,130.66,130.62,33.4099]
[1726514389444,23.776884,130.66,130.63,7.6551]
[1726514390367,31.430784,130.66,130.62,25.7543]
[1726514390661,23.776884,130.64,130.62,25.7543]
[1726514390962,23.776884,130.64,130.62,19.1389]
[1726514391962,23.776884,130.64,130.62,26.7946]
[1726514392262,7.6524,130.68,130.64,7.6541]
[1726514392479,7.6521,130.69,130.65,7.654]
[1726514393865,23.776884,130.68,130.65,7.654]
[1726514395678,25.29669375,130.68,130.65,7.654]
[1726514396765,1.51980975,130.67,130.64,26.7908]
[1726514396968,23.776884,130.66,130.64,26.7908]
[1726514397441,23.776884,130.66,130.63,13.8962]
[1726514397865,23.776884,130.64,130.61,26.7958]
[1726514398166,23.776884,130.64,130.62,7.6557]
[1726514398362,23.776884,130.65,130.62,7.6557]
[1726514402469,25.29669375,130.65,130.62,7.6557]
[1726514402674,32.95079375,130.65,130.61,26.7961]
[1726514403181,31.430984,130.65,130.61,26.7961]
[1726514405852,20.218229,130.71,130.62,1.5310438]
[1726514406069,7.869029,130.71,130.67,7.6528]
[1726514406451,0.218229,130.71,130.68,7.6521]
[1726514407955,23.995113,130.71,130.68,7.6521]
[1726514409871,0.218229,130.71,130.69,7.6514]
[1726514414884,0.218229,130.71,130.7,7.6511]
[1726514415575,0.218229,130.71,130.69,26.7798]
[1726514416384,0.218229,130.71,130.67,7.6524]
[1726514416687,23.776884,130.7,130.67,7.6524]
[1726514419376,23.995113,130.71,130.68,7.6522]
[1726514421075,23.776884,130.69,130.66,19.1324]
[1726514421394,31.428684,130.69,130.65,23.2585]
[1726514421762,23.776884,130.69,130.65,23.2585]
[1726514421971,23.776884,130.67,130.64,7.6545]
[1726514422265,31.429784,130.67,130.63,33.089]
[1726514423373,23.776884,130.67,130.64,7.6543]
[1726514423570,15.5567,130.7,130.64,7.6543]
[1726514423571,23.776884,130.68,130.64,7.6543]
[1726514423964,23.776884,130.68,130.65,7.6539]
[1726514424583,23.776884,130.69,130.65,7.6539]
[1726514425386,31.428584,130.69,130.65,7.6539]
[1726514429081,31.428584,130.69,130.63,25.4339]
[1726514429082,1.51980975,130.68,130.63,25.4339]
[1726514429285,23.776884,130.69,130.63,25.4339]
[1726514429585,23.776884,130.67,130.64,7.654]
[1726514430265,23.776884,130.67,130.65,7.6539]
[1726514430465,23.776884,130.68,130.65,7.6539]
[1726514431375,31.429184,130.68,130.64,7.6544]
[1726514432859,23.776884,130.68,130.63,25.4339]
[1726514433075,15.5567,130.7,130.65,7.6539]
[1726514433076,31.428684,130.69,130.65,7.6539]
[1726514433686,32.94849375,130.69,130.65,7.6539]
[1726514434070,31.428684,130.69,130.65,7.6539]
[1726514434490,23.776884,130.67,130.64,7.6544]
[1726514443506,23.776884,130.67,130.65,7.654]
[1726514444696,23.776884,130.68,130.65,7.654]
[1726514445498,23.776884,130.66,130.63,6.2971]
[1726514446205,23.776884,130.66,130.63,13.9521]
[1726514447877,1.51980975,130.65,130.6,6.1475]
[1726514448077,23.776884,130.64,130.61,7.6559]
[1726514450893,7.6536,130.66,130.62,7.6556]
[1726514451198,7.56552787,130.69,130.61,19.1405]
[1726514451199,43.776884,130.68,130.61,19.1405]
[1726514451988,15.5567,130.7,130.63,19.1373]
[1726514452313,0.218229,130.71,130.65,6.3632]
[1726514452812,0.218229,130.71,130.67,26.7842]
[1726514453199,0.218229,130.71,130.68,7.652]
[1726514459716,0.218229,130.71,130.67,19.1316]
[1726514459717,23.776884,130.7,130.67,26.7843]
[1726514459891,23.776884,130.7,130.67,19.1316]
[1726514461401,31.427984,130.7,130.67,19.1316]
[1726514461602,32.94779375,130.7,130.67,19.1316]
[1726514462816,32.94779375,130.7,130.66,7.6532]
[1726514463321,25.29669375,130.7,130.64,19.1353]
[1726514463707,23.776884,130.67,130.64,26.7895]
[1726514464419,23.776884,130.68,130.64,26.7895]
[1726514465498,23.776884,130.68,130.65,7.654]
[1726514466824,25.29669375,130.67,130.64,26.7898]
[1726514467018,23.776884,130.67,130.64,26.7898]
[1726514467231,32.94949375,130.67,130.64,19.1353]
[1726514467405,32.94949375,130.67,130.63,7.6551]
[1726514467810,31.429684,130.67,130.63,7.6551]
[1726514469002,23.776884,130.67,130.64,7.6545]
[1726514469623,7.6521,130.69,130.65,7.6539]
[1726514470139,9.17210975,130.68,130.64,7.6544]
[1726514470305,7.6523,130.68,130.64,7.6544]
[1726514471017,25.29669375,130.67,130.64,7.6544]
[1726514471809,25.29669375,130.67,130.63,19.1377]
[1726514472023,23.776884,130.65,130.63,19.1377]
[1726514473423,23.776884,130.66,130.63,26.7928]
[1726514473621,31.430284,130.66,130.63,19.1377]
[1726514474505,23.776884,130.66,130.63,26.7928]
[1726514475011,31.430284,130.66,130.63,19.1377]
[1726514475843,31.431584,130.64,130.6,26.7983]
[1726514477918,1.51980975,130.63,130.6,26.7983]
[1726514478114,1.51980975,130.63,130.6,19.1415]
[1726514478323,31.433084,130.62,130.58,7.6579]
[1726514479525,23.776884,130.62,130.58,7.6579]
[1726514480014,25.29669375,130.62,130.58,7.6579]
[1726514480434,32.95249375,130.62,130.58,7.6579]
[1726514481027,31.432684,130.62,130.58,7.6579]
[1726514482929,23.776884,130.6,130.58,7.6579]
[1726514483636,23.776884,130.6,130.57,27.0997482]
[1726514485522,25.29669375,130.6,130.57,19.4411482]
[1726514485718,32.95369375,130.6,130.57,0.2954482]
[1726514487717,31.433884,130.6,130.57,0.2954482]
[1726514488218,23.776884,130.58,130.57,0.2954482]
[1726514490744,7.6558,130.62,130.58,7.6579]
[1726514491040,27.6553,130.63,130.58,7.6579]
[1726514491923,32.95249375,130.62,130.58,7.6579]
[1726514492647,23.776884,130.62,130.59,7.6574]
[1726514494153,23.776884,130.62,130.58,19.1447]
[1726514494154,16.89762595,130.66,130.6,7.6569]
[1726514494356,10.30542595,130.66,130.61,0.40465797]
[1726514494543,7.6523,130.68,130.62,19.1389]
[1726514494948,10.30542595,130.67,130.62,19.1389]
[1726514495457,10.30542595,130.67,130.63,7.655]
[1726514495872,10.30542595,130.67,130.64,7.6544]
[1726514496047,24.162,130.7,130.66,7.6534]
[1726514496357,10.30542595,130.7,130.66,7.6534]
[1726514497255,17.95662595,130.7,130.66,7.6534]
[1726514497442,23.776884,130.69,130.66,7.6534]
[1726514500758,25.29669375,130.69,130.64,19.1358]
[1726514500967,32.94849375,130.69,130.65,7.6539]
[1726514506664,31.428684,130.69,130.65,7.6539]
[1726514508344,23.776884,130.69,130.66,7.6534]
[1726514508545,0.218229,130.71,130.68,7.6522]
[1726514508748,0.218229,130.71,130.68,19.1299]
[1726514509170,0.218229,130.71,130.68,26.7819]
[1726514509862,23.995113,130.71,130.68,26.7819]
[1726514510071,7.6512,130.7,130.66,7.6533]
[1726514510366,23.776884,130.69,130.66,7.6533]
[1726514512648,31.428584,130.69,130.65,26.7873]
[1726514514066,23.776884,130.69,130.65,19.1339]
[1726514514267,31.428584,130.69,130.65,26.7875]
[1726514519383,31.428584,130.69,130.66,7.6534]
[1726514519880,23.776884,130.69,130.66,7.6534]
[1726514521483,31.428684,130.69,130.65,26.7877]
[1726514522886,31.428684,130.69,130.66,7.6534]
[1726514524088,23.776884,130.69,130.66,7.6534]
[1726514524281,23.776884,130.7,130.67,26.7847]
[1726514526995,0.218229,130.71,130.67,19.1319]
[1726514527499,0.218229,130.71,130.7,7.6511]
[1726514527866,0.218229,130.71,130.69,26.7802]
[1726514528474,7.6511,130.7,130.66,19.133]
[1726514528672,7.868929,130.71,130.67,7.6528]
[1726514528979,0.218229,130.71,130.68,7.6522]
[1726514529493,41.95103895,130.71,130.66,26.7862]
[1726514530007,34.30053895,130.71,130.66,26.7862]
[1726514530182,34.30053895,130.71,130.66,19.133]
[1726514530183,23.776884,130.69,130.66,19.133]
[1726514530706,23.776884,130.69,130.66,26.7864]
[1726514531682,23.776884,130.7,130.66,26.7864]
[1726514532095,23.776884,130.7,130.67,9.18299521]
[1726514532307,0.218229,130.71,130.68,7.6522]
[1726514533801,23.995113,130.71,130.67,7.6527]
[1726514535002,23.995113,130.71,130.66,19.133]
[1726514535206,23.995113,130.71,130.68,7.652]
[1726514535678,34.30053895,130.71,130.63,16.6089]
[1726514535878,41.95153895,130.71,130.65,19.1345]
[1726514537309,23.995113,130.71,130.67,19.1316]
[1726514537609,23.995113,130.71,130.68,7.6518]
[1726514537917,0.218229,130.71,130.68,7.6518]
[1726514538610,0.218229,130.71,130.68,31.99371776]
[1726514538904,0.218229,130.71,130.7,26.7788]
[1726514551401,0.218229,130.71,130.7,80.83851776]
[1726514551603,0.218229,130.71,130.7,100.83851776]
[1726514553903,0.218229,130.71,130.7,102.36801779]
[1726514554599,0.218229,130.71,130.7,100.83851776]
[1726514558704,0.218229,130.71,130.7,85.0343]
[1726514559902,0.218229,130.71,130.7,100.83851776]
[1726514560616,2.9e-05,130.71,130.7,130.72990176]
[1726514560934,0.2568386,130.75,130.7,130.72990176]
[1726514560935,0.2568386,130.75,130.74,46.7706]
[1726514561107,0.2568386,130.75,130.74,62.57481776]
[1726514561309,0.2568386,130.75,130.74,84.82841776]
[1726514561829,0.2568386,130.75,130.74,108.60530176]
[1726514566102,0.2568386,130.75,130.74,84.82841776]
[1726514567022,0.2568386,130.75,130.74,26.7706]
[1726514570234,0.2568386,130.75,130.74,100.81861776]
[1726514571223,0.2568386,130.75,130.74,102.34755918]
[1726514571931,0.2568386,130.75,130.74,147.38750176]
[1726514572142,0.2568386,130.75,130.74,148.9162789]
[1726514573317,0.2568386,130.75,130.74,147.38750176]
[1726514573523,0.2568386,130.75,130.74,148.91603762]
[1726514574028,0.2568386,130.75,130.74,147.38750176]
[1726514574537,0.2568386,130.75,130.74,148.91625762]
[1726514574733,0.2568386,130.75,130.74,148.91623067]
[1726514575321,3.86e-05,130.75,130.74,148.91623067]
[1726514575721,0.2568386,130.79,130.74,148.91623067]
[1726514575722,0.2568386,130.79,130.78,26.7624]
[1726514575934,0.2568386,130.79,130.78,42.56661776]
[1726514576334,0.2568386,130.79,130.78,62.56661776]
[1726514576515,0.2568386,130.79,130.78,87.8031518]
[1726514576714,0.2568386,130.79,130.78,109.2344518]
[1726514576924,0.2568386,130.83,130.82,26.7542]
[1726514577324,0.2568386,130.83,130.82,42.55841776]
[1726514580536,0.2568386,130.83,130.82,26.7542]
[1726514585144,0.2568386,130.83,130.82,42.55841776]
[1726514585724,0.2568386,130.83,130.82,44.08526095]
[1726514586143,0.2568386,130.83,130.82,42.55841776]
[1726514586352,0.2568386,130.83,130.82,26.7542]
[1726514602836,0.2568386,130.83,130.82,42.55841776]
[1726514603241,0.2568386,130.83,130.82,62.55841776]
[1726514603459,0.2568386,130.87,130.86,26.746]
[1726514603636,0.2568386,130.87,130.86,64.07767755]
[1726514604169,0.2568386,130.87,130.86,110.7952281]
[1726514604368,15.3773386,130.95,130.9,15.80421776]
[1726514604369,0.2584854,130.94,130.9,15.80421776]
[1726514604666,0.4833506,130.94,130.93,7.6373]
[1726514604869,0.4833506,130.94,130.93,9.16429654]
[1726514605376,0.4833506,130.94,130.93,7.6373]
[1726514605866,0.4833506,130.94,130.93,23.44151776]
[1726514607276,0.4833506,130.94,130.93,7.6373]
[1726514607841,0.4833506,130.94,130.93,24.96797823]
[1726514608070,0.4833506,130.94,130.93,43.44151776]
[1726514608366,0.4833506,130.94,130.93,44.96841581]
[1726514609272,0.4833506,130.94,130.93,43.44151776]
[1726514611375,0.4833506,130.94,130.93,27.6373]
[1726514611549,0.4833506,130.94,130.93,43.44151776]
[1726514612556,0.4833506,130.94,130.93,27.6373]
[1726514615072,0.4833506,130.94,130.93,43.44151776]
[1726514628975,0.4833506,130.94,130.93,44.96829755]
[1726514629391,0.4833506,130.94,130.93,43.44151776]
[1726514642189,0.4833506,130.94,130.93,68.74465884]
[1726514642398,16.6345854,131.02,130.93,68.74465884]
[1726514642399,16.6345854,131.02,130.96,38.1787]
[1726514642704,0.258536,130.98,130.97,23.43951776]
[1726514642887,0.258536,130.98,130.97,26.7236]
[1726514644574,0.258536,130.98,130.97,28.24828718]
[1726514644770,0.258536,130.98,130.97,26.7236]
[1726514646019,0.258536,130.98,130.97,44.03858887]
[1726514646684,0.258536,130.98,130.97,42.52781776]
[1726514647691,0.258536,130.98,130.97,26.7236]
[1726514648477,0.258536,130.98,130.97,64.05377061]